{"text_format":"3","workbook":"xlsx","n_sheets":3,"sheets":["Pricing Schedule","Sheet2","Sheet3"],"not_rendered":{"defined_names":1},"read":"whole","date_system":"1900"}

{"sheet":"Pricing Schedule","index":0,"n_rows":56,"n_cols":7,"rows_kept":56,"merged":[[5,0,5,7],[7,0,8,0],[7,1,8,1],[7,2,8,2],[7,3,8,3],[7,4,8,4],[7,5,8,5],[7,6,8,6]]}
["ANNEXURE C: PRICING SCHEDULE "]
[]
["Prices to include VAT, all setup fees, 1 colour 1 position print (unless otherwise indicated)"]
["Delivery costs are to be excluded"]
["Where an item is unavailable/discontinued please quote on an equivalent item - provide the description/name and code of the equivalent item where applicable. The bidder is to clearly indicate where items have been replaced with an equivalent."]
["Items listed below and quantities listed below are for evaluation/comparison of bids only - final items and quantities will be determined by business need during the contract period. "]
[]
["No. ","Product Description","Product Code or equivalent","Colour ","Unit price Including VAT. ","Estimated quantities ","Total Price (Incl VAT) "]
[]
[1,"Sweet Tooth Mints"," SWT-600","White ",null,500,{"$f":"+F10*E10","v":0}]
[2,"Altitude Sputnik Torch Keyholder"," IDEA-0127","Blue/White ",null,500,{"$f":"+F11*E11","v":0}]
[3,"Altitude Picasso Ball Pen"," IDEA 2300","Navy",null,1000,0]
[4,"Altitude Traxx Memo Set ","GIFT 9458","Natural",null,1000,0]
[5,"Altitude Safeguard Sanitising Screen cleaner","GIFT 17147","Black/Silver",null,500,0]
[6,"Altitude Slider Mints","SWT-9465","White ",null,1000,0]
[7,"Altitude Headline Memo Set","IDEA-56005","White ",null,500,0]
[8,"Altitude Metro Ball Pen","IDEA-0700","Navy",null,1000,0]
[9,"Altitude Aura Highlighter Set","GIFT-9476","White ",null,500,0]
[10,"Altitude Tribeca Midi Hard Cover Notebook, including debossing","NB 9425 ","Black",null,100,0]
[11,"Altitude Armada Ball Pen","IDEA-1500","Navy/white",null,1000,0]
[12,"Serendipio Cozytrip Travel Blanket & Pillow, embroidery on blanket","PC-SD-165-B","Grey",null,650,0]
[13,"Serendipio Madison Cup 350ml, incl laser engraving 1 position ","DR-SD-171-B","White ",null,650,0]
[14,"Altitude Omega A5 Hard Cover Notebook","NB-9860","Navy ",null,650,0]
[15,"Altitude Back-to-Nature Non-Woven Shopper","BG-AM-414-B","Natural",null,650,0]
[16,"Serendipio Serenique Branded Hand Cream, 30ml, includes vinyl sticker","PC-SD-180-B","White/Black",null,650,0]
[17,"Serendipio Meteor Stainless Steel Vacuum Flask 500ml, 1 pos engraving","DW-7004","Black/Silver",null,650,0]
[18,"A5 Notepads with full colour print on cover","NA","Full colour ",null,500,0]
[19,"Altitude Oslo Ceramic Mug 330ml","IDEA-0935-SW","White",null,650,0]
[20,"Alex Varga Egality - A5 2026 Diary & Pen Set, including engraving 2 positions ","GF-AV-1369-B-BL","Black",null,50,0]
[21,"Okiyo Miyag Midi Jute Gift Bag","BG-OK-486","Natural",null,300,0]
[22,"Symphony Drawstring Bag ","BAG-3509","Navy ",null,500,0]
[23,"Serendipio Valley Brook 16 Can Cooler ","CL-SD-126-B-NT","Natural/Grey",null,650,0]
[24,"Reverance Award, includes laser engraving","AM-AM-17-B","NA",null,2,0]
[25,"Altitude Back to Nature non-woven bag","BG-AM-415-B","Natural ",null,650,0]
[26," Legend 3m Arcfin Banner, Double Sided ","DISPLAY-7033","Full colour",null,10,0]
[27," Legend Fabric Table Cloth, 3.35m x 2.25m ","DISPLAY-5015","Full colour",null,10,0]
[28,"Ovation Lay Flat Pull Up Banner","DISPLAY-4020","Full colour",null,10,0]
[29,"Everyday Lay Flat Pull Up Banner ","VI-AM-135-D","Full colour",null,10,0]
[30,"Gazebo 3mx3m","DISPLAY-2060","Full colour",null,2,0]
[31,"1 box Smarties, 40g with a branded sticker","NA","NA",null,500,0]
[32,"1 Kitkat, 41.5 g with branded sticker ","NA","NA",null,500,0]
[33,"1 sachet Nestle Capuchino, 18g ","NA","NA",null,500,0]
[34,"1 sachet Nestle Hot Chocolate, 20g ","NA","NA",null,500,0]
[35,"1 bottle Hillcrest calamata olives, 300g ","NA","NA",null,150,0]
[36,"1 bottle Boschendal olive oil, 500ml ","NA","NA",null,150,0]
[37,"1 bag Boschendal crisps, 120g ","NA","NA",null,150,0]
[38,"1 bag Boschendal 200g cookies/biscuits ","NA","NA",null,150,0]
[39,"1 box Lindt Lindor Chocolate Truffels, 200g ","NA","NA",null,150,0]
[40,"Wrapping Cost: To be wrapped in black wrapping paper, Box size: 26.8cm x 8cm x 8cm, Silver foil ribbon to be wrapped around the gift horizontally and vertically, Full colour sticker with approved wording and logo to be printed and applied to each gift. Sticker size 10cm x 4cm","NA","NA",null,650,0]
[]
[]
[null,"BIDDER’S NAME: _______________________________________________"]
[]
[null,"AUTHORISED SIGNATORY: ______________________________________"]
[]
[null,"DATE: _____________________"]

{"sheet":"Sheet2","index":1,"n_rows":77,"n_cols":2,"rows_kept":77,"hidden":true}
["Black pens fine point and click","Box of 50 "]
["Blue pens fine point and click","Box of 50"]
["Red pens fine point and click","Box of 50"]
["Marlin Ultra Glide pen 0.7","Pack of 5"]
["Ruler","Each"]
["Eraser","Each"]
["Pencil","Box of 50"]
["Stapler","Each"]
["Staples 26/6","Box"]
["Staple Remover","Each"]
["Blue ink","Each"]
["Black ink","Each"]
["Red ink","Each"]
["Highlighters","Pack of 10"]
["Pritt","Each"]
["Pre stick","Each"]
["Calculator","Each"]
["White board markers assorted colours","Pack of 10"]
["Cube refill","Each"]
["Sticky notes/ yellow post it ","Pack of 6"]
["Thick clear tape","Each"]
["Scissors","Each"]
["Manilla Folder 100 sheets  yellow","100 Sheets pack"]
["Manilla Folder 100 sheets  green","100 Sheets pack"]
["Laminating A4 pouch 150 mic","Pack of 10"]
[" A4 PVS plastic sleeves 100 per pack","Pack of 100"]
["PVC File dividers A-Z or 1-10","Pack"]
["Lever arch file 70mm and 40mm polyprop","Each"]
["Clear packaging tape ","Each"]
["Brown buffer tape to seal samples sen to lab","Each"]
["3m heavy duty tape mounting","Each"]
["Liquid to clean whiteboard","Each"]
["Pouch for id cards","237 ml each"]
["AAA duracell batteries","Pack of 12"]
["AA duracel batteries","Pack of 12"]
["File fasteners","Pack of 50"]
["Elastic bands","100g"]
["Finger cone various sizes","Pack of 10"]
["Gel pen","Box of 40"]
["Diaries A4 and A5 annual","Each"]
["Masonite clip board","Each"]
["Photocopy paper","Box of 5 reams (500 sheets)"]
[]
["Tippex","Each"]
["Punch Large and small","Each"]
["Large stapler","Each"]
["Staples for large stapler","Box"]
["Pen organizer  holders","Each"]
["Optiplan Folder 440 H/W with flaps","Pack"]
["Pushpin","box"]
["Waste Paper bin-wire","Each"]
["Notice Board","Each"]
["Frames A4","Each"]
["Sorter A-Z","Each"]
["Optiplan Plastic container / holders for Files","Each"]
["Brother barcoded labels","Roll"]
["Small and large ink pads","Each"]
["Selfinking stamps – date stamp","each"]
["Selfinking stamps – passed for export stamp","Each"]
["Selfinking stamps – reject stamp","each"]
["Selfinking stamps – personnel nr stamp","each"]
["Selfinking stamps","each"]
["Selfinking stamp ink – red - stampwell","each"]
["Selfinking stamp ink – blue - stampwell","each"]
["Selfinking stamp ink – black - stampwell","each"]
["Bic clic ballpoint pen medium - black","each"]
["Bic clic ballpoint pen medium - blue","each"]
["Bic ballpoint office pen medium Waltons – red","each"]
["A4 Rotatrim copy paper – 5 reams in box","Box of 5 reams (500 sheets)"]
[]
["Manilla folders – blue","Pack of 100 sheets"]
["Paperclips – king size wavy","Box of 100"]
["Paperclips – giant","Box of 100"]
["EK700 Fine Permanent marker","each"]
["EK70 Bullet point permanent marker","each"]
["Flip file display book (different pocket sizes)","each"]
["Metal file fasteners","Box of 50"]

{"sheet":"Sheet3","index":2,"n_rows":84,"n_cols":10,"rows_kept":84,"hidden":true,"merged":[[1,1,1,5],[4,1,4,3],[5,1,5,3],[7,1,8,1],[7,2,8,2],[7,3,8,3],[7,4,7,5],[7,6,7,7],[7,8,7,9],[74,1,74,5],[77,1,77,5],[78,1,78,5],[79,1,79,5],[81,1,81,5],[82,1,82,5],[83,1,83,5]]}
[]
[null,"ANNEXURE A: PRICING SCHEDULE "]
[null,"RFP/OPSLAB/CHEM/2021/05"]
[]
[null,"FOREX % of the total price per unit ",null,null,"%"]
[null,"NON- FOREX % of the total price per unit ",null,null,"%"]
[]
[null,"Product Description ","Unit of Measure (UOM)","Quantity","Year 1",null,"Year 2",null,"Year 3"]
[{"$nulls":4},"Unit price Including VAT. ","Total Price VAT Incl.","Unit price Including VAT. ","Total Price VAT Incl.","Unit price Including VAT. ","Total Price VAT Incl."]
[null,{"$f":"Sheet2!A1","v":"Black pens fine point and click"},{"$f":"Sheet2!B1","v":"Box of 50 "},1,null,{"$f":"D10*E10","v":{"v":0,"d":"R 0.00"}},null,{"$f":"D10*G10","v":{"v":0,"d":"R 0.00"}},null,{"$f":"D10*I10","v":{"v":0,"d":"R 0.00"}}]
[null,{"$f":"Sheet2!A2","v":"Blue pens fine point and click"},{"$f":"Sheet2!B2","v":"Box of 50"},1,null,{"$f":"D11*E11","v":{"v":0,"d":"R 0.00"}},null,{"$f":"D11*G11","v":{"v":0,"d":"R 0.00"}},null,{"$f":"D11*I11","v":{"v":0,"d":"R 0.00"}}]
[null,{"$f":"Sheet2!A3","v":"Red pens fine point and click"},{"$f":"Sheet2!B3","v":"Box of 50"},1,null,{"v":0,"d":"R 0.00"},null,{"v":0,"d":"R 0.00"},null,{"v":0,"d":"R 0.00"}]
[null,{"$f":"Sheet2!A4","v":"Marlin Ultra Glide pen 0.7"},{"$f":"Sheet2!B4","v":"Pack of 5"},1,null,{"v":0,"d":"R 0.00"},null,{"v":0,"d":"R 0.00"},null,{"v":0,"d":"R 0.00"}]
[null,{"$f":"Sheet2!A5","v":"Ruler"},{"$f":"Sheet2!B5","v":"Each"},1,null,{"v":0,"d":"R 0.00"},null,{"v":0,"d":"R 0.00"},null,{"v":0,"d":"R 0.00"}]
[null,{"$f":"Sheet2!A6","v":"Eraser"},{"$f":"Sheet2!B6","v":"Each"},1,null,{"v":0,"d":"R 0.00"},null,{"v":0,"d":"R 0.00"},null,{"v":0,"d":"R 0.00"}]
[null,{"$f":"Sheet2!A7","v":"Pencil"},{"$f":"Sheet2!B7","v":"Box of 50"},1,null,{"v":0,"d":"R 0.00"},null,{"v":0,"d":"R 0.00"},null,{"v":0,"d":"R 0.00"}]
[null,{"$f":"Sheet2!A8","v":"Stapler"},{"$f":"Sheet2!B8","v":"Each"},1,null,{"v":0,"d":"R 0.00"},null,{"v":0,"d":"R 0.00"},null,{"v":0,"d":"R 0.00"}]
[null,{"$f":"Sheet2!A9","v":"Staples 26/6"},{"$f":"Sheet2!B9","v":"Box"},1,null,{"v":0,"d":"R 0.00"},null,{"v":0,"d":"R 0.00"},null,{"v":0,"d":"R 0.00"}]
[null,{"$f":"Sheet2!A10","v":"Staple Remover"},{"$f":"Sheet2!B10","v":"Each"},1,null,{"v":0,"d":"R 0.00"},null,{"v":0,"d":"R 0.00"},null,{"v":0,"d":"R 0.00"}]
[null,{"$f":"Sheet2!A11","v":"Blue ink"},{"$f":"Sheet2!B11","v":"Each"},1,null,{"v":0,"d":"R 0.00"},null,{"v":0,"d":"R 0.00"},null,{"v":0,"d":"R 0.00"}]
[null,{"$f":"Sheet2!A12","v":"Black ink"},{"$f":"Sheet2!B12","v":"Each"},1,null,{"v":0,"d":"R 0.00"},null,{"v":0,"d":"R 0.00"},null,{"v":0,"d":"R 0.00"}]
[null,{"$f":"Sheet2!A13","v":"Red ink"},{"$f":"Sheet2!B13","v":"Each"},1,null,{"v":0,"d":"R 0.00"},null,{"v":0,"d":"R 0.00"},null,{"v":0,"d":"R 0.00"}]
[null,{"$f":"Sheet2!A14","v":"Highlighters"},{"$f":"Sheet2!B14","v":"Pack of 10"},1,null,{"v":0,"d":"R 0.00"},null,{"v":0,"d":"R 0.00"},null,{"v":0,"d":"R 0.00"}]
[null,{"$f":"Sheet2!A15","v":"Pritt"},{"$f":"Sheet2!B15","v":"Each"},1,null,{"v":0,"d":"R 0.00"},null,{"v":0,"d":"R 0.00"},null,{"v":0,"d":"R 0.00"}]
[null,{"$f":"Sheet2!A16","v":"Pre stick"},{"$f":"Sheet2!B16","v":"Each"},1,null,{"v":0,"d":"R 0.00"},null,{"v":0,"d":"R 0.00"},null,{"v":0,"d":"R 0.00"}]
[null,{"$f":"Sheet2!A17","v":"Calculator"},{"$f":"Sheet2!B17","v":"Each"},1,null,{"v":0,"d":"R 0.00"},null,{"v":0,"d":"R 0.00"},null,{"v":0,"d":"R 0.00"}]
[null,{"$f":"Sheet2!A18","v":"White board markers assorted colours"},{"$f":"Sheet2!B18","v":"Pack of 10"},1,null,{"v":0,"d":"R 0.00"},null,{"v":0,"d":"R 0.00"},null,{"v":0,"d":"R 0.00"}]
[null,{"$f":"Sheet2!A19","v":"Cube refill"},{"$f":"Sheet2!B19","v":"Each"},1,null,{"v":0,"d":"R 0.00"},null,{"v":0,"d":"R 0.00"},null,{"v":0,"d":"R 0.00"}]
[null,{"$f":"Sheet2!A20","v":"Sticky notes/ yellow post it "},{"$f":"Sheet2!B20","v":"Pack of 6"},1,null,{"v":0,"d":"R 0.00"},null,{"v":0,"d":"R 0.00"},null,{"v":0,"d":"R 0.00"}]
[null,{"$f":"Sheet2!A21","v":"Thick clear tape"},{"$f":"Sheet2!B21","v":"Each"},1,null,{"v":0,"d":"R 0.00"},null,{"v":0,"d":"R 0.00"},null,{"v":0,"d":"R 0.00"}]
[null,{"$f":"Sheet2!A22","v":"Scissors"},{"$f":"Sheet2!B22","v":"Each"},1,null,{"v":0,"d":"R 0.00"},null,{"v":0,"d":"R 0.00"},null,{"v":0,"d":"R 0.00"}]
[null,{"$f":"Sheet2!A23","v":"Manilla Folder 100 sheets  yellow"},{"$f":"Sheet2!B23","v":"100 Sheets pack"},1,null,{"v":0,"d":"R 0.00"},null,{"v":0,"d":"R 0.00"},null,{"v":0,"d":"R 0.00"}]
[null,{"$f":"Sheet2!A24","v":"Manilla Folder 100 sheets  green"},{"$f":"Sheet2!B24","v":"100 Sheets pack"},1,null,{"v":0,"d":"R 0.00"},null,{"v":0,"d":"R 0.00"},null,{"v":0,"d":"R 0.00"}]
[null,{"$f":"Sheet2!A25","v":"Laminating A4 pouch 150 mic"},{"$f":"Sheet2!B25","v":"Pack of 10"},1,null,{"v":0,"d":"R 0.00"},null,{"v":0,"d":"R 0.00"},null,{"v":0,"d":"R 0.00"}]
[null,{"$f":"Sheet2!A26","v":" A4 PVS plastic sleeves 100 per pack"},{"$f":"Sheet2!B26","v":"Pack of 100"},1,null,{"v":0,"d":"R 0.00"},null,{"v":0,"d":"R 0.00"},null,{"v":0,"d":"R 0.00"}]
[null,{"$f":"Sheet2!A27","v":"PVC File dividers A-Z or 1-10"},{"$f":"Sheet2!B27","v":"Pack"},1,null,{"v":0,"d":"R 0.00"},null,{"v":0,"d":"R 0.00"},null,{"v":0,"d":"R 0.00"}]
[null,{"$f":"Sheet2!A28","v":"Lever arch file 70mm and 40mm polyprop"},{"$f":"Sheet2!B28","v":"Each"},1,null,{"v":0,"d":"R 0.00"},null,{"v":0,"d":"R 0.00"},null,{"v":0,"d":"R 0.00"}]
[null,{"$f":"Sheet2!A29","v":"Clear packaging tape "},{"$f":"Sheet2!B29","v":"Each"},1,null,{"v":0,"d":"R 0.00"},null,{"v":0,"d":"R 0.00"},null,{"v":0,"d":"R 0.00"}]
[null,{"$f":"Sheet2!A30","v":"Brown buffer tape to seal samples sen to lab"},{"$f":"Sheet2!B30","v":"Each"},1,null,{"v":0,"d":"R 0.00"},null,{"v":0,"d":"R 0.00"},null,{"v":0,"d":"R 0.00"}]
[null,{"$f":"Sheet2!A31","v":"3m heavy duty tape mounting"},{"$f":"Sheet2!B31","v":"Each"},1,null,{"v":0,"d":"R 0.00"},null,{"v":0,"d":"R 0.00"},null,{"v":0,"d":"R 0.00"}]
[null,{"$f":"Sheet2!A32","v":"Liquid to clean whiteboard"},{"$f":"Sheet2!B32","v":"Each"},1,null,{"v":0,"d":"R 0.00"},null,{"v":0,"d":"R 0.00"},null,{"v":0,"d":"R 0.00"}]
[null,{"$f":"Sheet2!A33","v":"Pouch for id cards"},{"$f":"Sheet2!B33","v":"237 ml each"},1,null,{"v":0,"d":"R 0.00"},null,{"v":0,"d":"R 0.00"},null,{"v":0,"d":"R 0.00"}]
[null,{"$f":"Sheet2!A34","v":"AAA duracell batteries"},{"$f":"Sheet2!B34","v":"Pack of 12"},1,null,{"v":0,"d":"R 0.00"},null,{"v":0,"d":"R 0.00"},null,{"v":0,"d":"R 0.00"}]
[null,{"$f":"Sheet2!A35","v":"AA duracel batteries"},{"$f":"Sheet2!B35","v":"Pack of 12"},1,null,{"v":0,"d":"R 0.00"},null,{"v":0,"d":"R 0.00"},null,{"v":0,"d":"R 0.00"}]
[null,{"$f":"Sheet2!A36","v":"File fasteners"},{"$f":"Sheet2!B36","v":"Pack of 50"},1,null,{"v":0,"d":"R 0.00"},null,{"v":0,"d":"R 0.00"},null,{"v":0,"d":"R 0.00"}]
[null,{"$f":"Sheet2!A37","v":"Elastic bands"},{"$f":"Sheet2!B37","v":"100g"},1,null,{"v":0,"d":"R 0.00"},null,{"v":0,"d":"R 0.00"},null,{"v":0,"d":"R 0.00"}]
[null,{"$f":"Sheet2!A38","v":"Finger cone various sizes"},{"$f":"Sheet2!B38","v":"Pack of 10"},1,null,{"v":0,"d":"R 0.00"},null,{"v":0,"d":"R 0.00"},null,{"v":0,"d":"R 0.00"}]
[null,{"$f":"Sheet2!A39","v":"Gel pen"},{"$f":"Sheet2!B39","v":"Box of 40"},1,null,{"v":0,"d":"R 0.00"},null,{"v":0,"d":"R 0.00"},null,{"v":0,"d":"R 0.00"}]
[null,{"$f":"Sheet2!A40","v":"Diaries A4 and A5 annual"},{"$f":"Sheet2!B40","v":"Each"},1,null,{"v":0,"d":"R 0.00"},null,{"v":0,"d":"R 0.00"},null,{"v":0,"d":"R 0.00"}]
[null,{"$f":"Sheet2!A41","v":"Masonite clip board"},{"$f":"Sheet2!B41","v":"Each"},1,null,{"v":0,"d":"R 0.00"},null,{"v":0,"d":"R 0.00"},null,{"v":0,"d":"R 0.00"}]
[null,{"$f":"Sheet2!A42","v":"Photocopy paper"},{"$f":"Sheet2!B42","v":"Box of 5 reams (500 sheets)"},1,null,{"v":0,"d":"R 0.00"},null,{"v":0,"d":"R 0.00"},null,{"v":0,"d":"R 0.00"}]
[null,{"$f":"Sheet2!A43","v":0},{"$f":"Sheet2!B43","v":0},1,null,{"v":0,"d":"R 0.00"},null,{"v":0,"d":"R 0.00"},null,{"v":0,"d":"R 0.00"}]
[null,{"$f":"Sheet2!A44","v":"Tippex"},{"$f":"Sheet2!B44","v":"Each"},1,null,{"v":0,"d":"R 0.00"},null,{"v":0,"d":"R 0.00"},null,{"v":0,"d":"R 0.00"}]
[null,{"$f":"Sheet2!A45","v":"Punch Large and small"},{"$f":"Sheet2!B45","v":"Each"},1,null,{"v":0,"d":"R 0.00"},null,{"v":0,"d":"R 0.00"},null,{"v":0,"d":"R 0.00"}]
[null,{"$f":"Sheet2!A46","v":"Large stapler"},{"$f":"Sheet2!B46","v":"Each"},1,null,{"v":0,"d":"R 0.00"},null,{"v":0,"d":"R 0.00"},null,{"v":0,"d":"R 0.00"}]
[null,{"$f":"Sheet2!A47","v":"Staples for large stapler"},{"$f":"Sheet2!B47","v":"Box"},1,null,{"v":0,"d":"R 0.00"},null,{"v":0,"d":"R 0.00"},null,{"v":0,"d":"R 0.00"}]
[null,{"$f":"Sheet2!A48","v":"Pen organizer  holders"},{"$f":"Sheet2!B48","v":"Each"},1,null,{"v":0,"d":"R 0.00"},null,{"v":0,"d":"R 0.00"},null,{"v":0,"d":"R 0.00"}]
[null,{"$f":"Sheet2!A49","v":"Optiplan Folder 440 H/W with flaps"},{"$f":"Sheet2!B49","v":"Pack"},1,null,{"v":0,"d":"R 0.00"},null,{"v":0,"d":"R 0.00"},null,{"v":0,"d":"R 0.00"}]
[null,{"$f":"Sheet2!A50","v":"Pushpin"},{"$f":"Sheet2!B50","v":"box"},1,null,{"v":0,"d":"R 0.00"},null,{"v":0,"d":"R 0.00"},null,{"v":0,"d":"R 0.00"}]
[null,{"$f":"Sheet2!A51","v":"Waste Paper bin-wire"},{"$f":"Sheet2!B51","v":"Each"},1,null,{"v":0,"d":"R 0.00"},null,{"v":0,"d":"R 0.00"},null,{"v":0,"d":"R 0.00"}]
[null,{"$f":"Sheet2!A52","v":"Notice Board"},{"$f":"Sheet2!B52","v":"Each"},1,null,{"v":0,"d":"R 0.00"},null,{"v":0,"d":"R 0.00"},null,{"v":0,"d":"R 0.00"}]
[null,{"$f":"Sheet2!A53","v":"Frames A4"},{"$f":"Sheet2!B53","v":"Each"},1,null,{"v":0,"d":"R 0.00"},null,{"v":0,"d":"R 0.00"},null,{"v":0,"d":"R 0.00"}]
[null,{"$f":"Sheet2!A54","v":"Sorter A-Z"},{"$f":"Sheet2!B54","v":"Each"},1,null,{"v":0,"d":"R 0.00"},null,{"v":0,"d":"R 0.00"},null,{"v":0,"d":"R 0.00"}]
[null,{"$f":"Sheet2!A55","v":"Optiplan Plastic container / holders for Files"},{"$f":"Sheet2!B55","v":"Each"},1,null,{"v":0,"d":"R 0.00"},null,{"v":0,"d":"R 0.00"},null,{"v":0,"d":"R 0.00"}]
[null,{"$f":"Sheet2!A56","v":"Brother barcoded labels"},{"$f":"Sheet2!B56","v":"Roll"},1,null,{"v":0,"d":"R 0.00"},null,{"v":0,"d":"R 0.00"},null,{"v":0,"d":"R 0.00"}]
[null,{"$f":"Sheet2!A57","v":"Small and large ink pads"},{"$f":"Sheet2!B57","v":"Each"},1,null,{"v":0,"d":"R 0.00"},null,{"v":0,"d":"R 0.00"},null,{"v":0,"d":"R 0.00"}]
[null,{"$f":"Sheet2!A58","v":"Selfinking stamps – date stamp"},{"$f":"Sheet2!B58","v":"each"},1,null,{"v":0,"d":"R 0.00"},null,{"v":0,"d":"R 0.00"},null,{"v":0,"d":"R 0.00"}]
[null,{"$f":"Sheet2!A59","v":"Selfinking stamps – passed for export stamp"},{"$f":"Sheet2!B59","v":"Each"},1,null,{"v":0,"d":"R 0.00"},null,{"v":0,"d":"R 0.00"},null,{"v":0,"d":"R 0.00"}]
[null,{"$f":"Sheet2!A60","v":"Selfinking stamps – reject stamp"},{"$f":"Sheet2!B60","v":"each"},1,null,{"v":0,"d":"R 0.00"},null,{"v":0,"d":"R 0.00"},null,{"v":0,"d":"R 0.00"}]
[null,{"$f":"Sheet2!A61","v":"Selfinking stamps – personnel nr stamp"},{"$f":"Sheet2!B61","v":"each"},1,null,{"v":0,"d":"R 0.00"},null,{"v":0,"d":"R 0.00"},null,{"v":0,"d":"R 0.00"}]
[null,{"$f":"Sheet2!A62","v":"Selfinking stamps"},{"$f":"Sheet2!B62","v":"each"},1,null,{"v":0,"d":"R 0.00"},null,{"v":0,"d":"R 0.00"},null,{"v":0,"d":"R 0.00"}]
[{"$nulls":5},{"$f":"SUM(F10:F71)","v":{"v":0,"d":"R 0.00"}},null,{"$f":"SUM(H10:H71)","v":{"v":0,"d":"R 0.00"}},null,{"$f":"SUM(J10:J71)","v":{"v":0,"d":"R 0.00"}}]
[]
[]
[]
[]
[null,"Offered Annual Rebate: "]
[null,"_____ % rebate on annual increase of R 100 000.00"]
[null,"_____ % rebate on annual increase of R 200 000.00"]
[null,"_____ % rebate on annual increase of R 300 000.00"]
[]
[null,"BIDDER’S NAME: _______________________________________________"]
[null,"AUTHORISED SIGNATORY: ______________________________________"]
[null,"DATE: _____________________"]